fUSD/lending_fUSD_20260128
["ID","MTS","AMOUNT","RATE_DAILY","PERIOD"]
[403839962,1769586645308,-500.0,0.00016438,2]
[403839963,1769586645318,-500.0,0.00016438,2]
[403839964,1769586645327,-500.0,0.00016438,2]
[403839965,1769586645336,-500.0,0.00016438,2]
[403839966,1769586645345,-500.0,0.00016438,2]
[403839967,1769586645354,-500.0,0.00016438,2]
[403839968,1769586645363,-500.0,0.00016438,2]
[403839969,1769586645372,-500.0,0.00016438,2]
[403839970,1769586645381,-500.0,0.00016438,2]
[403839971,1769586645390,-1864.0,0.00016438,2]
[403839972,1769586645399,-1114.0,0.00016438,2]
[403839973,1769586645408,-16015.87176145,0.00016475,2]
[403839974,1769586645418,-985.88,0.00016657,2]
[403839975,1769586645427,-17126.153831,0.00016759,2]
[403839976,1769586645436,-220.71,0.00016769,2]
[403839977,1769586645444,-16015.87176145,0.00016831,2]
[403839978,1769586645453,-297.87,0.00016867,7]
[403839979,1769586645463,-433.0,0.00016897,2]
[403839980,1769586645472,-3200.0,0.000169,6]
[403839982,1769586645481,-211.99503794,0.000169,2]
[403839983,1769586645490,-1000.0,0.00016921,2]
[403839984,1769586645499,-501.11024626,0.00016921,2]
[403839985,1769586645509,-198.64506344,0.00016921,2]
[403839986,1769586645519,-985.88,0.00016931,2]
[403839987,1769586645528,-500.0,0.00016999,2]
[403839988,1769586645538,-500.0,0.00016999,2]
[403839989,1769586645547,-500.0,0.00016999,2]
[403839990,1769586645556,-500.0,0.00016999,2]
[403839991,1769586645565,-500.0,0.00016999,2]
[403839992,1769586645575,-500.0,0.00016999,2]
[403839993,1769586645584,-500.0,0.00016999,2]
[403839994,1769586645594,-500.0,0.00016999,2]
[403839995,1769586645604,-500.0,0.00016999,2]
[403839996,1769586645613,-500.0,0.00016999,2]
[403839997,1769586645622,-500.0,0.00016999,2]
[403839998,1769586645631,-223430.49409216,0.00017,2]
[403840000,1769586645640,-250.0,0.00017,2]
[403840002,1769586645649,-613.06,0.00017041,2]
[403840003,1769586645659,-500.0,0.00017049,2]
[403840004,1769586645670,-500.0,0.00017049,2]
[403840005,1769586645682,-500.0,0.00017049,2]
[403840006,1769586645691,-500.0,0.00017049,2]
[403840007,1769586645701,-504.1508484,0.00017049,2]
[403840008,1769586645712,-500.0,0.00017049,2]
[403840009,1769586645721,-503.01886942,0.00017049,2]
[403840010,1769586645732,-500.0,0.00017049,2]
[403840011,1769586645743,-57688.317071,0.0001705,2]
[403840012,1769586645754,-5122.03509609,0.00017055,2]
[403840013,1769586645763,-17126.153831,0.0001714,2]
[403840014,1769586645772,-166.66,0.00017155,2]
[403840015,1769586645781,-183.90965008,0.00017168,2]
[403840016,1769586645790,-10076.80540011,0.00017172,2]
[403840017,1769586645799,-1624.6,0.00017178,2]
[403840018,1769586645808,-150.0,0.00017178,2]
[403840019,1769586645817,-303.82,0.00017178,2]
[403840020,1769586645826,-937.61,0.00017178,2]
[403840021,1769586645835,-16015.87176145,0.00017188,2]
[403840022,1769586645844,-985.88,0.00017205,2]
[403840023,1769586645853,-322.6107,0.00017312,2]
[403840024,1769586645862,-2000.0,0.00017312,2]
[403840025,1769586645871,-209.40437684,0.00017312,2]
[403840026,1769586645879,-2000.0,0.00017312,2]
[403840027,1769586645888,-155.43682529,0.00017312,2]
[403840028,1769586645898,-578.20924308,0.00017312,2]
[403840029,1769586645907,-151.0,0.00017312,2]
[403840030,1769586645916,-500.0,0.00017312,2]
[403840031,1769586645925,-500.0,0.00017312,2]
[403840032,1769586645935,-2000.0,0.00017312,2]
[403840033,1769586645944,-174.61919141,0.00017312,2]
[403840034,1769586645953,-161.75816476,0.00017312,2]
[403840035,1769586645962,-500.0,0.00017312,2]
[403840036,1769586645972,-500.0,0.00017312,2]
[403840037,1769586645981,-207.69124521,0.00017312,2]
[403840038,1769586645991,-500.0,0.00017312,2]
[403840039,1769586646000,-500.0,0.00017312,2]
[403840040,1769586646011,-500.0,0.00017312,2]
[403840041,1769586646028,-500.0,0.00017312,2]
[403840042,1769586646048,-500.0,0.00017312,2]
[403840069,1769586646314,-522.5850038,0.00017312,2]
[403840071,1769586646324,-854.2589148,0.00017312,2]
[403840073,1769586646333,-381.30596867,0.00017312,2]
[403840075,1769586646342,-721.12765535,0.00017312,2]
[403840077,1769586646351,-250.0,0.00017312,2]
[403840079,1769586646362,-3000.0,0.00017312,2]
[403840081,1769586646371,-3000.0,0.00017312,2]
[403840083,1769586646379,-3000.0,0.00017312,2]
[403840085,1769586646389,-2000.0,0.00017312,2]
[403840087,1769586646399,-237.31,0.00017361,2]
[403840089,1769586646408,-217.15233878,0.00017367,2]
[403840091,1769586646418,-1000.0,0.00017387,2]
[403840093,1769586646427,-158.70124471,0.00017415,2]
[403840095,1769586646436,-225.18697532,0.00017422,2]
[403840097,1769586646446,-1005.52548547,0.00017468,2]
[403840099,1769586646455,-233.51889341,0.00017477,2]
[403840101,1769586646464,-500.0,0.00017478,2]
[403840103,1769586646472,-985.88,0.00017479,2]
[403840105,1769586646482,-2358.0,0.00017488,2]
[403840108,1769586646491,-2358.0,0.00017507,2]
[403840109,1769586646500,-2358.0,0.00017512,2]
[403840110,1769586646509,-2358.0,0.00017514,2]
[403840111,1769586646519,-2358.0,0.00017515,2]
[403840112,1769586646528,-166.66,0.00017516,2]
[403840113,1769586646537,-2358.0,0.00017517,2]
[403840114,1769586646548,-242.15909246,0.00017532,2]
[403840115,1769586646557,-16015.87176145,0.00017544,2]
[403840116,1769586646567,-2358.0,0.0001755,2]
[403840117,1769586646576,-150.00001483,0.00017554,2]
[403840118,1769586646586,-251.11897888,0.00017587,2]
[403840119,1769586646595,-4800.0,0.000176,6]
[403840120,1769586646604,-2351.0,0.00017625,2]
[403840121,1769586646614,-260.4103811,0.00017642,2]
[403840122,1769586646623,-1414.751,0.00017677,2]
[403840123,1769586646633,-617.145,0.00017677,2]
[403840124,1769586646642,-1338.52,0.00017677,2]
[403840125,1769586646651,-3487.934,0.00017677,2]
[403840126,1769586646660,-1274.033,0.00017677,2]
[403840127,1769586646673,-184.736,0.00017677,2]
[403840128,1769586646682,-1208.946,0.00017677,2]
[403840129,1769586646691,-567.0,0.00017677,2]
[403840130,1769586646700,-2443.0,0.00017677,2]
[403840131,1769586646711,-4832.0,0.00017677,2]
[403840132,1769586646720,-220.71,0.00017685,2]
[403840133,1769586646730,-270.0455652,0.00017697,2]
[403840134,1769586646740,-2358.0,0.00017699,2]
[403840135,1769586646749,-6400.0,0.000177,6]
[403840137,1769586646759,-576.03,0.00017701,2]
[403840139,1769586646768,-280.03725112,0.00017752,2]
[403840140,1769586646777,-985.94692234,0.00017753,2]
[403840141,1769586646786,-10000.0,0.00017763,2]
[403840142,1769586646797,-2358.0,0.00017782,2]
[403840143,1769586646808,-8000.0,0.000178,6]
[403840144,1769586646817,-205.65,0.00017805,2]
[403840145,1769586646827,-290.39862941,0.00017807,2]
[403840146,1769586646835,-2358.0,0.00017855,2]
[403840147,1769586646844,-181.08010149,0.0001786,2]
[403840148,1769586646853,-885.86649465,0.0001786,2]
[403840149,1769586646863,-301.1433787,0.00017862,2]
[403840150,1769586646872,-166.66,0.00017878,2]
[403840151,1769586646883,-468.85,0.0001789,2]
[403840152,1769586646892,-502.53550633,0.00017891,2]
[403840153,1769586646904,-192.79862973,0.00017891,2]
[403840154,1769586646916,-500.0,0.00017891,2]
[403840155,1769586646925,-500.0,0.00017891,2]
[403840156,1769586646934,-2358.0,0.00017892,2]
[403840157,1769586646944,-500.0,0.00017899,2]
[403840158,1769586646954,-500.0,0.00017899,2]
[403840159,1769586646963,-340.69516722,0.000179,2]
[403840160,1769586646974,-16015.87176145,0.000179,2]
[403840161,1769586646984,-1600.0,0.000179,6]
[403840162,1769586646993,-496.56720138,0.000179,2]
[403840163,1769586647002,-217.13537466,0.000179,2]
[403840164,1769586647011,-5423.7170479,0.000179,2]
[403840165,1769586647021,-228.23051518,0.000179,3]
[403840166,1769586647031,-977.81,0.00017959,2]
[403840167,1769586647041,-500.0,0.00017973,2]
[403840168,1769586647052,-150.0,0.00017973,2]
[403840169,1769586647063,-11758.50605339,0.0001799,3]
[403840170,1769586647074,-151.0,0.0001799,2]
[403840171,1769586647084,-151.0,0.0001799,2]
[403840172,1769586647094,-151.0,0.0001799,2]
[403840173,1769586647103,-796.731528,0.0001799,2]
[403840174,1769586647112,-796.731528,0.0001799,2]
[403840175,1769586647121,-796.731528,0.0001799,2]
[403840176,1769586647131,-796.731528,0.0001799,2]
[403840177,1769586647140,-170.2905794,0.0001799,2]
[403840178,1769586647149,-170.2905794,0.0001799,2]
[403840179,1769586647158,-150.0,0.00017999,2]
[403840180,1769586647167,-150.0,0.00017999,2]
[403840181,1769586647177,-183.10914216,0.00017999,2]
[403840182,1769586647186,-13998.35686924,0.00017999,2]
[403840183,1769586647195,-500.0,0.00017999,2]
[403840184,1769586647204,-519.88726717,0.00017999,2]
[403840185,1769586647214,-500.0,0.00017999,2]
[403840186,1769586647223,-575.22582116,0.00017999,2]
[403840187,1769586647232,-300.0,0.00017999,2]
[403840188,1769586647241,-666.0,0.00017999,2]
[403840189,1769586647250,-300.0,0.00017999,2]
[403840190,1769586647259,-500.0,0.00017999,2]
[403840191,1769586647269,-500.0,0.00017999,2]
[403840192,1769586647278,-500.0,0.00017999,2]
[403840193,1769586647287,-515.28066526,0.00017999,2]
[403840194,1769586647297,-524.93822417,0.00017999,2]
[403840195,1769586647306,-500.0,0.00017999,2]
[403840196,1769586647316,-508.88989411,0.00017999,2]
[403840197,1769586647325,-500.0,0.00017999,2]
[403840198,1769586647335,-500.0,0.00017999,2]
[403840199,1769586647344,-508.82801883,0.00017999,2]
[403840200,1769586647353,-300.0,0.00017999,2]
[403840201,1769586647363,-500.0,0.00017999,2]
[403840202,1769586647372,-500.0,0.00017999,2]
[403840203,1769586647381,-500.0,0.00017999,2]
[403840204,1769586647390,-522.28270672,0.00017999,2]
[403840205,1769586647399,-300.0,0.00017999,2]
[403840206,1769586647408,-300.0,0.00017999,2]
[403840207,1769586647417,-666.0,0.00017999,2]
[403840208,1769586647427,-1939380.41723878,0.00018,2]
[403840209,1769586647437,-189315.12467073,0.00018,2]
[403840210,1769586647446,-2425454.12376989,0.00018,2]
[403840211,1769586647455,-1191.25931111,0.00018,2]
[403840212,1769586647464,-2243.15,0.00018,2]
[403840213,1769586647473,-559.04,0.00018,2]
[403840214,1769586647482,-151.0,0.00018,2]
[403840215,1769586647491,-151.0,0.00018,2]
[403840216,1769586647500,-212.421188,0.00018,2]
[403840217,1769586647510,-172.27,0.00018,2]
[403840218,1769586647519,-468.85,0.00018,2]
[403840219,1769586647528,-151.0,0.00018,2]
[403840220,1769586647537,-151.0,0.00018,2]
[403840221,1769586647547,-187.547238,0.00018,2]
[403840222,1769586647556,-288.587944,0.00018,2]
[403840223,1769586647565,-288.587944,0.00018,2]
[403840224,1769586647575,-288.587944,0.00018,2]
[403840225,1769586647585,-288.587944,0.00018,2]
[403840226,1769586647594,-288.587944,0.00018,2]
[403840227,1769586647603,-288.587944,0.00018,2]
[403840228,1769586647613,-288.587944,0.00018,2]
[403840229,1769586647622,-288.587944,0.00018,2]
[403840230,1769586647632,-151.0,0.00018,2]
[403840231,1769586647642,-151.0,0.00018,2]
[403840232,1769586647652,-151.0,0.00018,2]
[403840233,1769586647661,-151.0,0.00018,2]
[403840234,1769586647673,-151.0,0.00018,2]
[403840235,1769586647682,-151.0,0.00018,2]
[403840236,1769586647692,-151.0,0.00018,2]
[403840237,1769586647701,-151.0,0.00018,2]
[403840238,1769586647711,-237.013504,0.00018,2]
[403840239,1769586647720,-237.013504,0.00018,2]
[403840240,1769586647730,-237.013504,0.00018,2]
[403840241,1769586647740,-237.013504,0.00018,2]
[403840242,1769586647749,-237.013504,0.00018,2]
[403840243,1769586647758,-237.013504,0.00018,2]
[403840244,1769586647768,-237.013504,0.00018,2]
[403840245,1769586647778,-237.013504,0.00018,2]
[403840246,1769586647788,-218.387859,0.00018,2]
[403840247,1769586647797,-218.387859,0.00018,2]
[403840248,1769586647806,-218.387859,0.00018,2]
[403840249,1769586647816,-218.387859,0.00018,2]
[403840250,1769586647825,-218.387859,0.00018,2]
[403840251,1769586647835,-218.387859,0.00018,2]
[403840252,1769586647844,-218.387859,0.00018,2]
[403840253,1769586647853,-218.387859,0.00018,2]
[403840254,1769586647863,-151.0,0.00018,2]
[403840255,1769586647872,-151.0,0.00018,2]
[403840256,1769586647882,-151.0,0.00018,2]
[403840257,1769586647891,-151.0,0.00018,2]
[403840258,1769586647901,-1072.691392,0.00018,2]
[403840259,1769586647910,-1072.691392,0.00018,2]
[403840260,1769586647919,-1072.691392,0.00018,2]
[403840261,1769586647929,-1072.691392,0.00018,2]
[403840262,1769586647939,-1072.691392,0.00018,2]
[403840263,1769586647948,-1072.691392,0.00018,2]
[403840264,1769586647958,-1072.691392,0.00018,2]
[403840265,1769586647967,-1072.691392,0.00018,2]
[403840266,1769586647977,-151.0,0.00018,2]
[403840267,1769586647987,-151.0,0.00018,2]
[403840268,1769586647996,-151.0,0.00018,2]
[403840269,1769586648006,-183.823457,0.00018,2]
[403840270,1769586648015,-151.0,0.00018,2]
[403840271,1769586648025,-153.48077,0.00018,2]
[403840272,1769586648034,-250.377259,0.00018,2]
[403840273,1769586648043,-250.377259,0.00018,2]
[403840274,1769586648052,-250.377259,0.00018,2]
[403840275,1769586648061,-250.377259,0.00018,2]
[403840276,1769586648071,-250.377259,0.00018,2]
[403840277,1769586648080,-250.377259,0.00018,2]
[403840278,1769586648090,-250.377259,0.00018,2]
[403840279,1769586648100,-250.377259,0.00018,2]
[403840280,1769586648111,-151.0,0.00018,2]
[403840281,1769586648121,-501.0,0.00018,2]
[403840282,1769586648131,-151.0,0.00018,2]
[403840283,1769586648141,-151.0,0.00018,2]
[403840284,1769586648152,-151.0,0.00018,2]
[403840285,1769586648162,-151.0,0.00018,2]
[403840286,1769586648171,-201.902198,0.00018,2]
[403840287,1769586648181,-796.731528,0.00018,2]
[403840288,1769586648191,-796.731528,0.00018,2]
[403840289,1769586648200,-796.731528,0.00018,2]
[403840290,1769586648209,-796.731528,0.00018,2]
[403840291,1769586648218,-796.731528,0.00018,2]
[403840292,1769586648228,-796.731528,0.00018,2]
[403840293,1769586648237,-796.731528,0.00018,2]
[403840294,1769586648246,-796.731528,0.00018,2]
[403840295,1769586648256,-482.694764,0.00018,2]
[403840296,1769586648265,-482.694764,0.00018,2]
[403840297,1769586648276,-482.694764,0.00018,2]
[403840298,1769586648288,-482.694764,0.00018,2]
[403840299,1769586648299,-482.694764,0.00018,2]
[403840300,1769586648310,-482.694764,0.00018,2]
[403840301,1769586648321,-482.694764,0.00018,2]
[403840302,1769586648332,-482.694764,0.00018,2]
[403840303,1769586648342,-151.0,0.00018,2]
[403840304,1769586648353,-151.0,0.00018,2]
[403840305,1769586648363,-208.614424,0.00018,2]
[403840306,1769586648373,-208.614424,0.00018,2]
[403840307,1769586648383,-208.614424,0.00018,2]
[403840308,1769586648394,-208.614424,0.00018,2]
[403840309,1769586648405,-208.614424,0.00018,2]
[403840310,1769586648416,-208.614424,0.00018,2]
[403840311,1769586648427,-208.614424,0.00018,2]
[403840312,1769586648438,-208.614424,0.00018,2]
[403840313,1769586648448,-151.0,0.00018,2]
[403840314,1769586648458,-500.0,0.00018028,2]
[403840315,1769586648467,-200.0,0.00018082,2]
[403840316,1769586648476,-200.0,0.00018082,3]
[403840317,1769586648485,-200.0,0.00018082,4]
[403840318,1769586648495,-200.0,0.00018082,5]
[403840319,1769586648504,-200.0,0.00018082,6]
[403840320,1769586648513,-200.0,0.00018082,7]
[403840321,1769586648523,-292.19472761,0.00018082,8]
[403840322,1769586648532,-500.0,0.00018083,2]
[403840323,1769586648541,-500.0,0.00018137,2]
[403840324,1769586648550,-2358.0,0.00018154,2]
[403840325,1769586648560,-300.0,0.00018155,2]
[403840326,1769586648569,-300.0,0.00018155,2]
[403840327,1769586648579,-666.0,0.00018155,2]
[403840328,1769586648588,-8613.0,0.00018156,2]
[403840329,1769586648597,-500.0,0.00018192,2]
[403840330,1769586648714,-166.66,0.00018239,2]
[403840331,1769586648723,-500.0,0.00018247,2]
[403840332,1769586648733,-500.0,0.00018302,2]
[403840333,1769586648744,-237.31,0.0001835,2]
[403840334,1769586648754,-500.0,0.00018357,2]
[403840335,1769586648763,-1852.42,0.00018362,2]
[403840336,1769586648772,-300.0,0.00018402,2]
[403840337,1769586648781,-300.0,0.00018402,2]
[403840338,1769586648790,-666.0,0.00018402,2]
[403840339,1769586648800,-8094.27,0.00018403,2]
[403840340,1769586648811,-187.78006525,0.00018408,2]
[403840341,1769586648820,-918.64355495,0.00018408,2]
[403840342,1769586648830,-289.8103178,0.00018411,2]
[403840343,1769586648839,-2358.0,0.00018426,2]
[403840344,1769586648849,-2358.0,0.0001847,2]
[403840345,1769586648858,-2358.0,0.00018492,2]
[403840346,1769586648867,-2358.0,0.00018516,2]
[403840347,1769586648876,-500.0,0.00018521,2]
[403840348,1769586648885,-300.0,0.00018532,2]
[403840349,1769586648894,-300.0,0.00018532,2]
[403840350,1769586648905,-300.0,0.00018532,2]
[403840351,1769586648915,-703.88062231,0.00018532,2]
[403840352,1769586648926,-9999.99,0.00018533,2]
[403840353,1769586648936,-6045.63,0.00018533,2]
[403840354,1769586648946,-220.46,0.00018533,2]
[403840355,1769586648955,-150.99,0.00018533,2]
[403840356,1769586648965,-30024.37,0.00018533,2]
[403840357,1769586648974,-3697.18,0.00018533,2]
[403840358,1769586648985,-3825.89,0.00018533,2]
[403840359,1769586648994,-299.99,0.00018533,4]
[403840360,1769586649003,-9999.99,0.00018533,2]
[403840361,1769586649013,-250.45243939,0.00018538,2]
[403840362,1769586649022,-2358.0,0.00018555,2]
[403840363,1769586649031,-2358.0,0.00018571,2]
[403840364,1769586649040,-2358.0,0.00018596,2]
[403840365,1769586649050,-5122.03509608,0.00018599,2]
[403840366,1769586649059,-166.66,0.000186,2]
[403840367,1769586649068,-2358.0,0.0001868,2]
[403840368,1769586649078,-334.5472959,0.00018681,2]
[403840369,1769586649087,-2358.0,0.00018703,2]
[403840370,1769586649096,-2358.0,0.00018747,2]
[403840371,1769586649105,-500.0,0.00018858,2]
[403840372,1769586649113,-2358.0,0.00018895,2]
[403840373,1769586649123,-183.92,0.00018901,2]
[403840374,1769586649131,-2358.0,0.00018908,2]
[403840375,1769586649141,-150.00001483,0.00018947,5]
[403840376,1769586649150,-243.65670637,0.0001895,2]
[403840377,1769586649159,-2358.0,0.00018952,2]
[403840378,1769586649168,-194.72792766,0.00018956,2]
[403840379,1769586649177,-952.63336648,0.00018956,2]
[403840380,1769586649185,-166.66,0.00018961,2]
[403840381,1769586649195,-166.66,0.0001898,2]
[403840382,1769586649204,-566.81664929,0.00019,2]
[403840383,1769586649213,-868.22,0.00019019,2]
[403840384,1769586649222,-200.19495985,0.00019082,2]
[403840385,1769586649231,-1000.0,0.00019126,2]
[403840386,1769586649240,-500.0,0.00019178,2]
[403840387,1769586649249,-500.0,0.00019178,2]
[403840388,1769586649258,-570.27863892,0.00019178,2]
[403840389,1769586649267,-500.0,0.00019178,2]
[403840390,1769586649276,-500.0,0.00019178,2]
[403840391,1769586649285,-151.0,0.00019178,2]
[403840392,1769586649294,-151.0,0.00019178,2]
[403840393,1769586649303,-151.0,0.00019178,2]
[403840394,1769586649311,-215.50229,0.00019178,2]
[403840395,1769586649321,-151.0,0.00019178,2]
[403840396,1769586649330,-151.0,0.00019178,2]
[403840397,1769586649339,-151.0,0.00019178,2]
[403840398,1769586649348,-151.0,0.00019178,2]
[403840399,1769586649357,-151.0,0.00019178,2]
[403840400,1769586649366,-151.0,0.00019178,2]
[403840401,1769586649375,-761.604489,0.00019178,2]
[403840402,1769586649383,-761.604489,0.00019178,2]
[403840403,1769586649392,-761.604489,0.00019178,2]
[403840404,1769586649401,-761.604489,0.00019178,2]
[403840405,1769586649410,-761.604489,0.00019178,2]
[403840406,1769586649419,-761.604489,0.00019178,2]
[403840407,1769586649428,-761.604489,0.00019178,2]
[403840408,1769586649437,-761.604489,0.00019178,2]
[403840409,1769586649446,-761.604489,0.00019178,2]
[403840410,1769586649455,-761.604489,0.00019178,2]
[403840411,1769586649464,-761.604489,0.00019178,2]
[403840412,1769586649474,-761.604489,0.00019178,2]
[403840413,1769586649482,-300.0,0.00019338,2]
[403840414,1769586649491,-300.0,0.00019338,2]
[403840415,1769586649501,-576.03,0.00019471,2]
[403840416,1769586649510,-300.0,0.00019489,2]
[403840417,1769586649519,-300.0,0.00019489,2]
[403840418,1769586649528,-300.0,0.00019489,2]
[403840419,1769586649537,-300.0,0.00019489,2]
[403840420,1769586649546,-12872.0034267,0.0001949,2]
[403840421,1769586649555,-6518.91910662,0.000195,2]
[403840422,1769586649564,-201.93286099,0.00019504,2]
[403840423,1769586649573,-987.88080104,0.00019504,2]
[403840424,1769586649583,-2706.458,0.00019525,2]
[403840425,1769586649592,-222.396,0.00019525,2]
[403840426,1769586649601,-197.76,0.00019579,2]
[403840427,1769586649610,-166.66,0.00019607,2]
[403840428,1769586649619,-162.14,0.0001963,2]
[403840429,1769586649629,-2000.0,0.000197,2]
[403840430,1769586649637,-200.0,0.00019722,2]
[403840431,1769586649647,-1000.0,0.00019763,2]
[403840432,1769586649656,-1000.0,0.00019816,2]
[403840433,1769586649665,-1000.0,0.00019818,2]
[403840434,1769586649678,-197.76,0.00019821,2]
[403840435,1769586649687,-200.0,0.0001984,2]
[403840436,1769586649695,-1000.0,0.00019872,2]
[403840437,1769586649705,-152.0,0.00019879,3]
[403840438,1769586649715,-1000.0,0.00019925,2]
[403840439,1769586649725,-500.0,0.0002,2]
[403840440,1769586649734,-500.0,0.0002,2]
[403840441,1769586649745,-200.0,0.0002,2]
[403840442,1769586649754,-2872.132186,0.00020034,2]
[403840443,1769586649764,-346.92554585,0.0002005,2]
[403840444,1769586649773,-599.60298507,0.00020051,2]
[403840445,1769586649782,-721.12765535,0.00020051,2]
[403840446,1769586649791,-209.40437684,0.00020052,2]
[403840447,1769586649800,-1024.43239068,0.00020052,2]
[403840448,1769586649809,-1000.0,0.00020093,2]
[403840449,1769586649818,-5122.03509608,0.00020142,2]
[403840450,1769586649827,-1000.0,0.00020195,2]
[403840451,1769586649837,-1000.0,0.00020213,2]
[403840452,1769586649846,-166.66,0.00020233,2]
[403840453,1769586649855,-1000.0,0.00020244,2]
[403840454,1769586649866,-1000.0,0.00020256,2]
[403840455,1769586649875,-1000.0,0.00020257,2]
[403840456,1769586649886,-209.28929397,0.00020278,2]
[403840457,1769586649896,-1000.0,0.00020296,2]
[403840458,1769586649906,-150.00001483,0.00020341,10]
[403840459,1769586649918,-500.0,0.00020356,7]
[403840460,1769586649927,-500.0,0.00020356,7]
[403840461,1769586649937,-500.0,0.00020356,7]
[403840462,1769586649945,-1000.0,0.000204,2]
[403840463,1769586649954,-1000.0,0.00020426,2]
[403840464,1769586649963,-1000.0,0.00020433,2]
[403840465,1769586649975,-217.15233878,0.000206,2]
[403840466,1769586649987,-1185.18288296,0.000206,2]
[403840467,1769586649996,-1000.0,0.00020622,2]
[403840468,1769586650005,-428.89752222,0.00020676,2]
[403840469,1769586650014,-300.0,0.00020676,2]
[403840470,1769586650024,-300.0,0.00020676,2]
[403840471,1769586650032,-300.0,0.00020676,2]
[403840472,1769586650042,-615.0,0.00020677,2]
[403840473,1769586650052,-1333.0,0.00020677,2]
[403840474,1769586650062,-3477.0,0.00020677,2]
[403840475,1769586650073,-1270.0,0.00020677,2]
[403840476,1769586650084,-184.0,0.00020677,2]
[403840477,1769586650094,-1204.0,0.00020677,2]
[403840478,1769586650104,-567.0,0.00020677,2]
[403840479,1769586650116,-2443.0,0.00020677,2]
[403840480,1769586650125,-4832.0,0.00020677,2]
[403840481,1769586650135,-501.0,0.00020696,4]
[403840482,1769586650144,-1000.0,0.00020712,2]
[403840483,1769586650153,-1000.0,0.00020788,2]
[403840484,1769586650162,-1000.0,0.0002082,2]
[403840485,1769586650171,-166.66,0.0002086,2]
[403840486,1769586650181,-1000.0,0.00020864,2]
[403840487,1769586650192,-1000.0,0.00020894,2]
[403840488,1769586650202,-1000.0,0.00020945,2]
[403840489,1769586650214,-877.25345748,0.00020965,2]
[403840490,1769586650224,-300.0,0.00020999,2]
[403840491,1769586650234,-300.0,0.00020999,2]
[403840492,1769586650243,-500.0,0.00021,2]
[403840493,1769586650252,-150.0,0.00021,7]
[403840494,1769586650262,-20000.0,0.00021,2]
[403840495,1769586650271,-779.12169,0.00021,2]
[403840496,1769586650280,-806.93450251,0.00021,2]
[403840497,1769586650291,-1193.76869682,0.00021,2]
[403840498,1769586650302,-197.04144914,0.00021,2]
[403840499,1769586650312,-151.0,0.00021,2]
[403840500,1769586650321,-152.0,0.00021,2]
[403840501,1769586650331,-1267.0,0.00021,2]
[403840502,1769586650340,-151.0,0.00021,2]
[403840503,1769586650351,-152.0,0.00021,2]
[403840504,1769586650360,-1267.0,0.00021,2]
[403840505,1769586650370,-151.0,0.00021,2]
[403840506,1769586650379,-152.0,0.00021,2]
[403840507,1769586650388,-151.0,0.00021,2]
[403840508,1769586650398,-1267.0,0.00021,2]
[403840509,1769586650408,-152.0,0.00021,2]
[403840510,1769586650417,-151.0,0.00021,2]
[403840511,1769586650426,-1267.0,0.00021,2]
[403840512,1769586650436,-152.0,0.00021,2]